bitfinex-derivatives/quotes_ETHF0:USTF0_20250320
["timestamp","ask_amount","ask_price","bid_price","bid_amount"]
[1742456779242,3.21046324,2009.3,2009.2,2.3064]
[1742456780134,0.00746324,2009.3,2009.2,2.3064]
[1742456781246,0.00746324,2009.3,2009.2,2.98408021]
[1742456782648,0.00746324,2009.3,2009.2,2.98431702]
[1742456784746,0.00746324,2009.3,2009.2,2.98456482]
[1742456785347,0.00746324,2009.3,2009.2,6.18756482]
[1742456792857,0.00746324,2009.3,2009.2,6.18754808]
[1742456796658,1.39346324,2009.3,2009.2,6.18754808]
[1742456797149,1.39346324,2009.3,2009.2,6.18770338]
[1742456798461,0.00746324,2009.3,2009.2,6.18770338]
[1742456799358,0.6875,2009.6,2009.5,0.99515]
[1742456799554,0.6875,2009.6,2009.5,4.88125338]
[1742456799750,1.9747,2009.8,2009.7,0.99505]
[1742456800058,1.9747,2009.8,2009.7,1.67335338]
[1742456800853,0.6696,2009.8,2009.7,1.67335338]
[1742456801146,0.6696,2009.8,2009.7,1.6735628]
[1742456801346,0.6696,2009.8,2009.7,3.0932628]
[1742456801754,0.6696,2009.8,2009.7,43.8932628]
[1742456803065,0.6696,2009.8,2009.7,44.29294939]
[1742456803565,0.6696,2009.8,2009.7,43.8932628]
[1742456804962,0.00746324,2010.0,2009.9,0.99495]
[1742456805158,2.02066324,2010.0,2009.9,4.8812628]
[1742456805464,2.02066324,2010.0,2009.9,6.2609628]
[1742456809763,2.02066324,2010.0,2009.9,5.58245]
[1742456818676,2.02066324,2010.0,2009.9,6.26004198]
[1742456819470,2.02066324,2010.0,2009.9,6.26003731]
[1742456819671,0.6885,2010.0,2009.9,6.26003731]
[1742456820064,7.40349,2010.5,2010.4,0.9947]
[1742456820268,7.0561,2010.5,2010.4,0.9947]
[1742456820466,0.6473,2010.5,2010.4,0.9947]
[1742456821269,1.3104,2010.5,2010.4,0.9947]
[1742456821475,2.30505,2010.5,2010.4,0.9947]
[1742456821773,1.3104,2010.5,2010.4,0.9947]
[1742456822474,0.9947,2010.4,2010.3,2.34653]
[1742456822661,2.30507,2010.5,2010.4,0.9947]
[1742456822867,3.72557,2010.5,2010.4,0.9947]
[1742456823174,3.72557,2010.5,2010.3,2.34652]
[1742456823477,1.2929,2010.4,2010.3,2.34652]
[1742456823671,1.2929,2010.4,2010.3,0.99472]
[1742456824477,1.2929,2010.4,2010.2,4.21003324]
[1742456824978,0.99475,2010.3,2010.2,4.21003324]
[1742456825478,0.99475,2010.3,2010.2,3.21526324]
[1742456826175,2.28761,2010.4,2010.2,3.21526324]
[1742456826379,0.99475,2010.3,2010.2,4.21005324]
[1742456826578,1.3308,2010.3,2010.2,3.21526324]
[1742456826779,1.3308,2010.3,2010.2,4.21006324]
[1742456827283,2.32555,2010.3,2010.2,4.21006324]
[1742456827475,1.3308,2010.3,2010.2,4.21006324]
[1742456829081,1.3308,2010.3,2010.2,4.8884555]
[1742456830180,1.3308,2010.3,2010.2,3.8936555]
[1742456830181,2.32555,2010.3,2010.2,3.8936555]
[1742456830382,2.32555,2010.3,2010.2,3.21526324]
[1742456831780,5.52555,2010.3,2010.2,3.21526324]
[1742456831985,4.5308,2010.3,2009.9,4.20272]
[1742456832185,0.9949,2010.1,2010.0,0.67882095]
[1742456833181,0.99489,2010.1,2010.0,1.67379548]
[1742456833380,2.35194,2010.2,2010.0,0.67890548]
[1742456833576,1.3571,2010.2,2010.1,0.99485]
[1742456835187,2.7107,2010.2,2010.1,0.99485]
[1742456836079,3.7055,2010.2,2010.0,2.35136]
[1742456836287,1.4016,2010.1,2010.0,2.35136]
[1742456836486,1.4016,2010.1,2010.0,1.67384017]
[1742456836688,1.4016,2010.1,2010.0,0.99486]
[1742456836888,1.4016,2010.1,2010.0,1.67383957]
[1742456841491,1.4016,2010.1,2010.0,1.67386766]
[1742456843291,1.3536,2010.2,2010.1,0.99485]
[1742456843491,1.3536,2010.2,2010.1,1.6738915]
[1742456843678,2.7181,2010.2,2010.1,1.6738915]
[1742456846585,5.96,2010.5,2010.4,0.9947]
[1742456846791,3.2,2010.5,2010.4,0.99466]
[1742456847091,3.8579,2010.6,2010.5,0.99465]
[1742456847391,3.8579,2010.6,2010.5,1.67361363]
[1742456847592,3.8579,2010.6,2010.5,1.67360742]
[1742456847787,5.1984,2010.6,2010.5,1.67360742]
[1742456848183,0.71626324,2010.7,2010.6,0.9946]
[1742456848382,0.00746324,2010.7,2010.6,1.673374]
[1742456849396,0.00746324,2010.7,2010.6,2.07602426]
[1742456849688,0.00746324,2010.7,2010.6,5.64720203]
[1742456851895,0.00746324,2010.7,2010.6,5.64652191]
[1742456852294,0.00746324,2010.7,2010.6,2.04487165]
[1742456852493,0.00746324,2010.7,2010.5,3.2078]
[1742456852494,1.00201324,2010.7,2010.5,4.20241]
[1742456852694,2.0297,2010.6,2010.5,0.99461]
[1742456852994,2.7405,2010.6,2010.5,0.99461]
[1742456853389,0.7108,2010.6,2010.5,1.67201874]
[1742456853792,0.00746324,2010.7,2010.6,0.9946]
[1742456853793,1.33266324,2010.7,2010.6,0.9946]
[1742456853992,2.04346324,2010.7,2010.6,0.9946]
[1742456854594,0.00746324,2010.7,2010.6,0.9946]
[1742456856196,0.00746324,2010.7,2010.6,2.2919]
[1742456857000,0.00746324,2010.7,2010.6,2.97626807]
[1742456857402,0.00746324,2010.7,2010.6,43.77626807]
[1742456857898,0.00746324,2010.7,2010.6,43.77598792]
[1742456859704,3.24e-06,2010.7,2010.6,46.27598792]
[1742456860593,1.9799,2011.3,2010.9,2.48613]
[1742456860895,3.8498,2011.6,2011.5,0.99416]
[1742456861090,5.8438,2011.6,2011.5,0.99416]
[1742456861699,2.6458,2011.6,2011.5,0.99416]
[1742456863201,2.6458,2011.6,2011.3,1.00168324]
[1742456863401,1.3501,2011.5,2011.3,0.00746324]
[1742456863596,1.3501,2011.5,2011.3,1.36836324]
[1742456863803,1.3501,2011.5,2011.4,0.99421]
[1742456864601,0.99421,2011.4,2011.3,0.00746324]
[1742456865210,0.99426,2011.3,2011.2,3.2078]
[1742456865408,2.34436,2011.3,2011.2,3.2078]
[1742456865703,2.34436,2011.3,2011.2,2.1414]
[1742456866100,1.3501,2011.3,2011.2,3.13571]
[1742456867607,2.34436,2011.3,2011.2,3.13571]
[1742456867806,1.3501,2011.3,2011.2,3.13571]
[1742456868605,2.34436,2011.3,2011.2,3.13571]
[1742456868807,2.99346,2011.3,2011.2,3.13571]
[1742456869206,2.99346,2011.3,2011.2,2.1414]
[1742456869502,1.9992,2011.3,2011.2,3.13571]
[1742456869710,2.99346,2011.3,2011.2,3.13571]
[1742456870006,1.9992,2011.3,2011.2,3.13571]
[1742456872117,1.9992,2011.3,2011.0,0.00746324]
[1742456872118,13.667,2011.3,2011.0,0.00746324]
[1742456872411,2.48607,2011.0,2010.5,0.99464]
[1742456872601,3.2078,2010.6,2010.5,0.99465]
[1742456872803,6.4058,2010.6,2010.5,0.99465]
[1742456873111,7.7106,2010.6,2010.5,0.99465]
[1742456873311,4.5126,2010.6,2010.5,0.99465]
[1742456873499,0.00746324,2010.8,2010.7,0.99455]
[1742456873701,1.31226324,2010.8,2010.7,0.99455]
[1742456874004,1.31226324,2010.8,2010.7,3.07065]
[1742456876111,1.31226324,2010.8,2010.7,3.74768361]
[1742456878108,1.31226324,2010.8,2010.7,3.07065]
[1742456878315,1.31226324,2010.8,2010.7,3.74803676]
[1742456878509,0.00746324,2010.8,2010.7,3.74803676]
[1742456880209,0.00746324,2010.8,2010.7,3.74804952]
[1742456883212,0.00746324,2010.8,2010.7,2.75349952]
[1742456883409,0.65776324,2010.8,2010.7,3.74804952]
[1742456883811,0.00746324,2010.8,2010.7,3.74804952]
[1742456886222,0.00746324,2010.8,2010.7,6.24804952]
[1742456892417,0.00746324,2010.8,2010.7,3.74804952]
[1742456892622,0.00746324,2010.8,2010.7,6.94504952]
[1742456893825,0.89246324,2011.0,2010.9,0.99446]
[1742456894028,3.2078,2011.1,2011.0,0.99441]
[1742456894214,3.2078,2011.1,2011.0,3.05830952]
[1742456894525,3.2078,2011.1,2011.0,3.72260952]
[1742456898728,3.8484,2011.1,2011.0,3.05830952]
[1742456900227,3.8484,2011.1,2011.0,3.05931523]
[1742456902733,3.2078,2011.1,2011.0,3.05931523]
[1742456903032,3.2078,2011.1,2011.0,3.75591523]
[1742456904234,3.2078,2011.1,2011.0,3.75640375]
[1742456906628,1.3613,2011.2,2011.1,0.99436]
[1742456906829,1.3613,2011.2,2011.1,2.98855375]
[1742456907119,1.3613,2011.2,2011.1,44.49485375]
[1742456907327,1.3613,2011.2,2011.1,47.69185375]
[1742456908435,1.3613,2011.2,2011.1,47.6920798]
[1742456909838,1.3613,2011.2,2011.1,6.1857798]
[1742456910134,1.3613,2011.2,2011.1,4.8704798]
[1742456910335,1.3613,2011.2,2011.1,4.87045172]
[1742456910824,1.3613,2011.2,2011.1,6.26635172]
[1742456915030,1.3613,2011.2,2011.1,3.06935172]
[1742456916531,1.3613,2011.2,2011.1,3.06964034]
[1742456918539,1.3613,2011.2,2011.1,2.39026]
[1742456918735,1.3613,2011.2,2011.1,3.0696117]
[1742456920644,1.3613,2011.2,2011.1,3.06957256]
[1742456922639,1.3613,2011.2,2011.1,2.39026]
[1742456922843,1.3613,2011.2,2011.1,3.06951127]
[1742456924843,1.3613,2011.2,2011.1,3.06952443]
[1742456925244,1.33856324,2011.3,2011.2,0.99431]
[1742456925445,1.33856324,2011.3,2011.2,2.96287443]
[1742456925949,0.00746324,2011.3,2011.2,6.15987443]
[1742456926345,0.00746324,2011.3,2011.2,6.15968086]
[1742456926741,0.69826324,2011.3,2011.2,5.48061]
[1742456926946,0.69826324,2011.3,2011.2,6.15971432]
[1742456927749,0.69826324,2011.3,2011.2,2.96271432]
[1742456928052,1.69252324,2011.3,2011.2,1.96840432]
[1742456928752,0.69826324,2011.3,2011.2,2.96271432]
[1742456928945,0.69826324,2011.3,2011.2,2.96271737]
[1742456929147,2.06596324,2011.3,2011.2,2.96271737]
[1742456930343,3.06022324,2011.3,2011.2,2.96271737]
[1742456930746,3.06022324,2011.3,2011.2,1.67341737]
[1742456930953,5.26296324,2011.3,2011.0,3.2078]
[1742456931148,3.08525,2011.2,2011.1,0.67922555]
[1742456931449,2.0909,2011.2,2011.1,0.99435]
[1742456932046,2.0909,2011.2,2011.1,1.67351533]
[1742456932255,2.0909,2011.2,2011.1,3.07261533]
[1742456932947,2.0909,2011.2,2011.1,2.39345]
[1742456933147,2.0909,2011.2,2011.1,3.07257547]
[1742456933750,0.99436,2011.1,2011.0,4.20217]
[1742456933952,1.4171,2011.1,2011.0,6.1912986]
[1742456934139,2.41146,2011.1,2011.0,6.1912986]
[1742456934343,1.4171,2011.1,2011.0,6.1912986]
[1742456935052,2.41146,2011.1,2011.0,6.1912986]
[1742456935246,2.41146,2011.1,2011.0,3.8869286]
[1742456935447,0.99441,2011.0,2010.9,2.30444]
[1742456935647,3.08691,2011.0,2010.9,2.98338227]
[1742456936050,3.08691,2011.0,2010.9,0.67894227]
[1742456936261,3.08691,2011.0,2010.5,2.48664]
[1742456936262,0.9945,2010.8,2010.4,4.5051]
[1742456936555,2.32065,2010.7,2010.6,2.2774]
[1742456936755,3.73655,2010.7,2010.6,1.2828]
[1742456937059,2.742,2010.7,2010.6,2.2774]
[1742456938750,3.73655,2010.7,2010.6,2.2774]
[1742456938951,2.742,2010.7,2010.4,1.3081]
[1742456939150,1.4025,2010.6,2010.5,2.32132]
[1742456940553,2.3971,2010.6,2010.5,2.32132]
[1742456940755,2.3971,2010.6,2010.5,1.3267]
[1742456940954,2.3971,2010.6,2010.5,2.32135]
[1742456941259,1.4025,2010.6,2010.5,2.32135]
[1742456941654,3.8559,2010.7,2010.6,0.9946]
[1742456941956,5.2226,2010.7,2010.6,2.3179]
[1742456944668,2.0256,2010.7,2010.6,2.3179]
[1742456945462,3.02015,2010.7,2010.6,1.3233]
[1742456946166,3.02015,2010.7,2010.6,2.3179]
[1742456946362,2.0256,2010.7,2010.6,1.3233]
[1742456946563,2.0256,2010.7,2010.6,2.3179]
[1742456947258,1.3667,2010.7,2010.6,2.3179]
[1742456949859,3.2078,2010.8,2010.7,0.99455]
[1742456950054,3.2078,2010.8,2010.7,3.04665]
[1742456950757,3.2078,2010.8,2010.7,3.74935]
[1742456951866,4.5314,2010.8,2010.7,3.74935]
[1742456952068,5.5259,2010.8,2010.7,2.7548]
[1742456952271,4.5314,2010.8,2010.7,2.7548]
[1742456953164,5.5259,2010.8,2010.7,1.3992]
[1742456953565,5.5259,2010.8,2010.7,2.39375]
[1742456953766,4.5314,2010.8,2010.7,2.39375]
[1742456954072,5.5259,2010.8,2010.7,1.3992]
[1742456954370,5.5259,2010.8,2010.7,2.39375]
[1742456954566,4.5314,2010.8,2010.7,2.39375]
[1742456957076,5.5259,2010.8,2010.7,2.39375]
[1742456957271,5.5259,2010.8,2010.7,1.3992]
[1742456957566,5.5259,2010.8,2010.7,2.39375]
[1742456959161,4.5314,2010.8,2010.7,2.39375]
[1742456959863,5.5259,2010.8,2010.7,2.39375]
[1742456960271,4.5314,2010.8,2010.7,2.39375]
[1742456960665,4.5314,2010.8,2010.4,1.3963]
[1742456960869,4.5314,2010.8,2010.6,0.99459]
[1742456960870,2.31447,2010.7,2010.6,0.99459]
[1742456961070,2.31447,2010.7,2010.5,1.4156]
[1742456961273,3.6251,2010.6,2010.5,2.41025]
[1742456961471,2.6305,2010.6,2010.5,2.41025]
[1742456965172,1.3199,2010.6,2010.5,2.41025]
[1742456965569,3.8913,2010.8,2010.7,0.99455]
[1742456965774,6.4048,2010.8,2010.7,0.99455]
[1742456965977,3.2078,2010.8,2010.7,0.99455]
[1742456966168,3.2078,2010.8,2010.7,2.36015]
[1742456967174,4.2023,2010.8,2010.7,1.3656]
[1742456967377,4.2023,2010.8,2010.7,1.66965]
[1742456967571,5.5589,2010.8,2010.7,1.66965]
[1742456967773,4.5644,2010.8,2010.7,1.66965]
[1742456974682,3.2078,2010.8,2010.7,1.66965]
[1742456974881,3.2078,2011.1,2011.0,0.99438]
[1742456975075,4.5052,2011.1,2011.0,0.99438]
[1742456979678,4.5052,2011.1,2011.0,1.67078]
[1742456981186,4.5052,2011.1,2011.0,1.67081]
[1742456981487,5.49958,2011.1,2010.9,1.2953]
[1742456981687,1.3504,2011.0,2010.9,1.2953]
[1742456981986,1.3504,2011.0,2010.9,2.28976]
[1742456986489,3.2078,2011.1,2011.0,0.99441]
[1742456986685,4.4958,2011.1,2011.0,2.33261]
[1742456988190,1.288,2011.1,2011.0,2.33261]
[1742456989587,2.28236,2011.1,2011.0,1.3382]
[1742456989791,2.98026,2011.1,2011.0,2.33261]
[1742456990785,2.98026,2011.1,2011.0,1.3382]
[1742456992383,2.98026,2011.1,2011.0,2.33261]
[1742456992783,1.9859,2011.1,2011.0,2.33261]
[1742456992984,5.1829,2011.1,2011.0,0.99441]
[1742456994687,4.485,2011.1,2011.0,0.99441]
[1742456994878,1.288,2011.1,2011.0,0.99441]
[1742456997586,5.47837,2011.1,2011.0,0.99441]
[1742456997782,4.484,2011.1,2011.0,0.99441]
[1742456997992,5.1794,2011.1,2011.0,0.99441]
[1742456998392,6.17376,2011.1,2011.0,0.99441]
[1742456998794,5.1794,2011.1,2011.0,0.99441]
[1742456999794,5.1794,2011.1,2010.0,1.88768652]
[1742456999984,4.20227,2010.9,2010.8,1.3723]
[1742457000294,12.3638,2010.9,2010.3,0.00746324]
[1742457000498,3.2078,2010.6,2010.5,0.99461]
[1742457000794,13.3584,2010.6,2010.5,0.99461]
[1742457000991,13.6661,2010.6,2010.5,0.99461]
[1742457001584,13.6661,2010.6,2010.4,1.3723]
[1742457001783,2.5963,2010.5,2010.4,2.36697]
[1742457004491,3.59095,2010.5,2010.4,1.3723]
[1742457006496,2.5963,2010.5,2010.4,2.367]
[1742457006695,1.3023,2010.5,2010.4,2.367]
[1742457007089,12.3638,2010.6,2010.4,2.367]
[1742457007090,12.3638,2010.6,2010.5,0.99465]
[1742457007299,13.6896,2010.6,2010.5,3.10485]
[1742457008896,14.3835,2010.6,2010.5,3.10485]
[1742457009200,12.1821,2010.6,2010.5,1.4063]
[1742457009402,12.8759,2010.6,2010.5,1.4063]
[1742457009602,11.8813,2010.6,2010.5,2.40095]
[1742457010088,12.8759,2010.6,2010.5,1.4063]
[1742457010697,12.8759,2010.6,2010.5,2.40095]
[1742457011302,11.8813,2010.6,2010.5,2.40095]
[1742457011686,12.8759,2010.6,2010.5,2.40095]
[1742457012100,6.9159,2010.6,2010.5,2.40095]
[1742457012595,0.9947,2010.4,2010.3,0.00746324]
[1742457012800,0.99495,2009.9,2009.8,3.2078]
[1742457013191,3.197,2010.0,2009.7,0.99503]
[1742457013192,0.995,2009.8,2009.7,0.99503]
[1742457013396,2.3544,2009.8,2009.7,0.99503]
[1742457013599,2.3544,2009.8,2009.6,3.01436]
[1742457013799,1.2915,2009.7,2009.6,3.01436]
[1742457014003,1.2915,2009.7,2009.6,1.69686]
[1742457015998,1.405,2009.8,2009.7,0.99505]
[1742457016296,0.00746324,2009.9,2009.8,0.995]
[1742457016297,1.41246324,2009.9,2009.8,0.995]
[1742457017000,0.00746324,2009.9,2009.8,0.995]
[1742457017397,1.41246324,2009.9,2009.8,0.995]
[1742457018096,0.00746324,2009.9,2009.8,0.995]
[1742457022504,0.6827,2010.3,2009.8,4.849]
[1742457022699,3.8807,2010.3,2010.2,0.9948]
[1742457023894,4.87549,2010.3,2010.0,0.99486]
[1742457024106,3.2078,2010.1,2010.0,0.99486]
[1742457025906,3.2078,2010.1,2010.0,2.38306]
[1742457027304,3.2078,2010.1,2010.0,0.99486]
[1742457027504,3.2078,2010.1,2009.9,0.99491]
[1742457027701,3.2078,2010.1,2010.0,0.9949]
[1742457027901,3.2078,2010.1,2010.0,2.317]
[1742457029401,4.20265,2010.1,2010.0,1.3221]
[1742457030109,7.40065,2010.1,2010.0,1.3221]
[1742457030306,0.9949,2010.0,2009.8,2.41087]
[1742457030506,1.64615,2009.9,2009.8,2.41087]
[1742457030710,0.99504,2009.8,2009.6,0.7079]
[1742457030911,2.33949,2009.9,2009.7,2.41095]
[1742457031111,0.995,2009.8,2009.7,2.41095]
[1742457031812,4.5425,2009.9,2009.8,0.995]
[1742457032010,4.5425,2009.9,2009.8,2.4109]
[1742457032902,3.2078,2010.1,2009.8,2.4109]
[1742457032903,3.2078,2010.1,2010.0,0.9949]
[1742457033613,4.20265,2010.1,2010.0,2.351]
[1742457033914,4.20265,2010.1,2010.0,1.3561]
[1742457035117,3.2078,2010.1,2009.5,8.90109324]
[1742457035413,0.99497,2009.9,2009.8,0.99497]
[1742457035822,0.99498,2009.9,2009.8,0.99498]
[1742457036111,2.95908,2009.9,2009.8,0.99498]
[1742457036813,1.9641,2009.9,2009.8,0.99498]
[1742457037206,0.995,2009.8,2009.7,2.35111]
[1742457037408,3.0009,2009.8,2009.7,1.3561]
[1742457037809,3.0009,2009.8,2009.7,2.35115]
[1742457038210,6.2087,2009.8,2009.7,2.35115]
[1742457038419,5.2137,2009.8,2009.7,2.35115]
[1742457039218,3.2078,2009.8,2009.7,2.35115]
[1742457042711,3.2078,2009.8,2009.7,5.54915]
[1742457043222,1.3978,2010.1,2010.0,0.9949]
[1742457044417,1.3978,2010.1,2010.0,2.3854]
[1742457044616,2.39265,2010.1,2010.0,1.3905]
[1742457045417,2.39265,2010.1,2010.0,2.3854]
[1742457046015,1.3978,2010.1,2010.0,2.3854]
[1742457049724,2.39265,2010.1,2010.0,2.3854]
[1742457050024,2.39265,2010.1,2010.0,1.3905]
[1742457050628,0.99496,2009.9,2009.8,1.347]
[1742457050919,4.20276,2009.9,2009.7,0.99501]
[1742457051124,2.6148,2009.8,2009.7,2.31211]
[1742457052126,3.6098,2009.8,2009.7,2.31211]
[1742457053429,2.6148,2009.8,2009.7,2.31211]
[1742457054634,5.8226,2009.8,2009.7,2.31211]
[1742457054839,6.8176,2009.8,2009.7,2.31211]
[1742457055422,5.8226,2009.8,2009.7,2.31211]
[1742457055921,3.2078,2009.8,2009.7,2.31211]
[1742457056933,4.517,2009.8,2009.7,2.31211]
[1742457058722,3.2078,2009.8,2009.7,2.31211]
[1742457061837,1.3645,2010.0,2009.9,0.99495]
[1742457062524,1.3645,2010.0,2009.9,2.37175]
[1742457062724,3.8912,2010.1,2009.9,2.37175]
[1742457062725,3.2078,2010.1,2010.0,0.9949]
[1742457062920,4.5723,2010.1,2010.0,3.0329]
[1742457064729,5.2509,2010.1,2010.0,3.0329]
[1742457066135,2.0431,2010.1,2010.0,3.0329]
[1742457066338,5.2509,2010.1,2010.0,3.0329]
[1742457066935,2.0431,2010.1,2010.0,3.0329]
[1742457067338,5.2509,2010.1,2010.0,3.0329]
[1742457068140,4.5723,2010.1,2010.0,3.0329]
[1742457069230,5.56715,2010.1,2010.0,2.038]
[1742457069532,5.2302,2010.1,2010.0,2.038]
[1742457069736,5.2302,2010.1,2010.0,2.3717]
[1742457072237,3.2078,2010.1,2010.0,2.3717]
[1742457077942,1.4074,2010.4,2010.3,0.99475]
[1742457078446,3.89006324,2010.5,2010.4,0.9947]
[1742457078646,5.23026324,2010.5,2010.4,0.9947]
[1742457078945,3.21526324,2010.5,2010.4,0.9947]
[1742457079444,3.21526324,2010.5,2010.4,2.3499]
[1742457081446,3.21526324,2010.5,2010.4,0.7049]
[1742457081648,5.62183324,2010.5,2010.3,2.33482]
[1742457081852,2.7956,2010.4,2010.3,2.33482]
[1742457082143,3.7903,2010.4,2010.1,1.4158]
[1742457082345,2.40665,2010.3,2010.2,1.3879]
[1742457082534,2.40665,2010.3,2010.1,0.99482]
[1742457082739,1.4119,2010.2,2010.1,2.38272]
[1742457089952,7.3437,2010.4,2010.3,0.99475]
[1742457091252,8.7124,2010.4,2010.3,0.99475]
[1742457095153,9.70712,2010.4,2010.2,2.34419]
[1742457095352,2.33885,2010.3,2010.2,1.3494]
[1742457095554,2.33885,2010.3,2010.2,2.3442]
[1742457095754,1.3441,2010.3,2010.2,2.3442]
[1742457099154,2.33885,2010.3,2010.2,2.3442]
[1742457099860,0.99481,2010.2,2009.9,1.3694]
[1742457100057,2.40651,2010.2,2010.1,1.4188]
[1742457100456,5.61431,2010.2,2010.1,1.4188]
[1742457100863,0.99485,2010.1,2010.0,0.99487]
[1742457101061,1.4117,2010.1,2010.0,2.41367]
[1742457101364,2.40655,2010.1,2010.0,2.41367]
[1742457102357,2.40655,2010.1,2010.0,2.4137]
[1742457103158,1.4117,2010.1,2010.0,2.4137]
[1742457103666,2.40655,2010.1,2010.0,2.4137]
[1742457104059,1.4117,2010.1,2010.0,2.4137]
[1742457105168,3.2078,2010.2,2010.1,0.99485]
[1742457105375,3.2078,2010.2,2010.1,2.28265]
[1742457106470,4.5589,2010.2,2010.1,2.28265]
[1742457107765,3.2078,2010.2,2010.1,2.28265]
[1742457109468,5.96,2010.4,2010.3,0.99475]
[1742457110076,5.96,2010.4,2010.3,2.93515]
[1742457110574,7.3185,2010.4,2010.3,2.93515]
[1742457112372,5.96,2010.4,2010.3,2.93515]
[1742457112576,3.21526324,2010.5,2010.4,0.9947]
[1742457112770,3.21526324,2010.5,2010.4,2.3024]
[1742457113777,4.49846324,2010.5,2010.4,2.3024]
[1742457115267,4.49846324,2010.5,2010.4,1.3077]
[1742457115468,4.49846324,2010.5,2010.4,2.3024]
[1742457116174,1.29066324,2010.5,2010.4,2.3024]
[1742457120484,2.28531324,2010.5,2010.4,1.3077]
[1742457121280,1.29066324,2010.5,2010.4,2.3024]
[1742457121471,4.48766324,2010.5,2010.4,2.3024]
[1742457123687,10.44766324,2010.5,2010.4,2.3024]
[1742457123983,5.96746324,2010.5,2010.4,2.3024]
[1742457124886,7.28486324,2010.5,2010.4,2.3024]
[1742457129181,5.96746324,2010.5,2010.4,2.3024]
[1742457129585,0.00746324,2010.5,2010.4,2.3024]
[1742457130390,1.30556324,2010.5,2010.4,2.3024]
[1742457130693,2.00446324,2010.5,2010.4,2.3024]
[1742457132587,0.00746324,2010.5,2010.4,2.3024]
[1742457133493,0.00746324,2010.5,2010.4,2.70630297]
[1742457133795,5.96,2010.7,2010.6,0.9946]
[1742457133980,3.2078,2011.1,2011.0,0.99441]
[1742457134385,4.583,2011.1,2011.0,0.99441]
[1742457134984,4.583,2011.1,2011.0,2.33791]
[1742457135492,4.583,2011.1,2011.0,3.02439905]
[1742457135680,4.583,2011.1,2011.0,3.0243977]
[1742457136990,5.2341,2011.1,2011.0,3.0243977]
[1742457137197,5.2341,2011.1,2011.0,2.33791]
[1742457137395,5.2341,2011.1,2011.0,3.0240113]
[1742457137590,5.2341,2011.1,2011.0,3.02401108]
[1742457137791,5.2341,2011.1,2011.0,3.02401086]
[1742457137988,5.2341,2011.1,2011.0,3.02400541]
[1742457138188,4.583,2011.1,2011.0,2.33791]
[1742457138391,3.2078,2011.1,2011.0,3.02381839]
[1742457139292,3.2078,2011.1,2011.0,2.33791]
[1742457144097,3.2078,2011.1,2011.0,2.98781]
[1742457148101,3.8706,2011.1,2011.0,2.33791]
[1742457148400,5.1966,2011.1,2011.0,2.33791]
[1742457150400,4.5338,2011.1,2011.0,3.00801]
[1742457151302,3.2078,2011.1,2011.0,3.00801]
[1742457155210,4.6063,2011.2,2011.1,0.99436]
[1742457155411,4.6063,2011.2,2011.1,2.31546]
[1742457160805,4.6063,2011.2,2011.1,3.00177488]
[1742457161409,1.3985,2011.2,2011.1,3.00177488]
[1742457164012,0.65856324,2011.3,2011.2,0.99431]
[1742457164219,1.34386324,2011.3,2011.2,3.09282488]
[1742457165023,1.99546324,2011.3,2011.2,3.09282488]
[1742457165216,1.99546324,2011.3,2011.2,2.40651]
[1742457165423,1.99546324,2011.3,2011.2,3.09404856]
[1742457168427,1.34386324,2011.3,2011.2,3.09404856]
[1742457169323,1.34386324,2011.3,2011.2,2.40651]
[1742457169523,1.34386324,2011.3,2011.2,3.09385835]
[1742457173014,1.34386324,2011.3,2011.2,3.09374717]
[1742457173211,0.00746324,2011.3,2011.2,3.09374717]
[1742457173412,0.00746324,2011.3,2011.2,2.40651]
[1742457173615,0.00746324,2011.3,2011.2,3.0936643]
[1742457173811,1.33656324,2011.3,2011.2,3.0936643]
[1742457175422,1.33656324,2011.3,2011.2,6.2876643]
[1742457175726,0.00746324,2011.3,2011.2,6.28757878]
[1742457176124,1.42176324,2011.3,2011.2,6.28757878]
[1742457177619,1.42176324,2011.3,2011.2,6.28754395]
[1742457178329,0.00746324,2011.3,2011.2,6.28754395]
[1742457180829,0.00746324,2011.3,2011.2,6.96784395]
[1742457181228,0.00746324,2011.3,2011.2,6.96781456]
[1742457183126,0.00746324,2011.3,2011.2,6.96784615]
[1742457183528,0.71286324,2011.3,2011.2,3.09354615]
[1742457183926,2.12356324,2011.3,2011.2,3.09354615]
[1742457185133,2.12356324,2011.3,2011.2,3.09365904]
[1742457187735,2.12356324,2011.3,2011.2,1.68145904]
[1742457188437,2.12356324,2011.3,2011.2,2.98395904]
[1742457191137,0.00746324,2011.3,2011.2,2.98395904]
[1742457191534,1.42726324,2011.3,2011.2,2.98395904]
[1742457196742,0.00746324,2011.3,2011.2,2.98395904]
[1742457196944,1.33066324,2011.3,2011.2,2.98395904]
[1742457197953,1.33066324,2011.3,2011.2,2.98467294]
[1742457198859,0.00746324,2011.3,2011.2,2.98467294]
[1742457199754,0.00746324,2011.3,2011.2,2.9846703]
[1742457204861,0.00746324,2011.3,2011.2,6.1776703]
[1742457205762,0.00746324,2011.3,2011.2,6.17753669]
[1742457207658,0.00746324,2011.3,2011.2,6.82393669]
[1742457207860,0.00746324,2011.3,2011.2,6.82388547]
[1742457210062,0.00746324,2011.3,2011.2,6.82377014]
[1742457211364,1.36276324,2011.3,2011.2,6.82377014]
[1742457211866,1.36276324,2011.3,2011.2,6.13621]
[1742457212164,1.36276324,2011.3,2011.2,6.82372326]
[1742457214063,1.36276324,2011.3,2011.2,6.82372909]
[1742457214266,1.36276324,2011.3,2011.2,2.98432909]
[1742457216063,1.36276324,2011.3,2011.2,2.98434624]
[1742457222264,1.36276324,2011.3,2011.2,2.98450696]
[1742457222463,1.36276324,2011.3,2011.2,2.29681]
[1742457222669,1.36276324,2011.3,2011.2,2.98451496]
[1742457224261,1.36276324,2011.3,2011.2,2.98458911]
[1742457227470,5.54902324,2011.3,2011.2,0.68777911]